[Event "Titled Tuesday Blitz August 02 Late 2022"]
[White "Weisz, Bryan"]
[Black "Wieczorek, Oskar"]
[WhiteFideId "30934133"]
[BlackFideId "1133950"]
[WhiteElo "2243"]
[BlackElo "2330"]
[Result "0-1"]
[Round "08"]
[TimeControl "180+1"]
[Date "2022.08.02"]
[WhiteClock "0:00:14"]
[BlackClock "0:01:35"]

1. e4 {[%clk 0:03:00]}  c5 {[%clk 0:02:59]} 2. Nf3 {[%clk 0:03:00]}  e6 {[%clk 0:02:58]} 3. d4 {[%clk 0:03:00]}  cxd4 {[%clk 0:02:59]} 4. Nxd4 {[%clk 0:03:01]}  Nf6 {[%clk 0:02:59]} 5. Nc3 {[%clk 0:03:01]}  d6 {[%clk 0:02:59]} 6. g3 {[%clk 0:02:58]}  Nc6 {[%clk 0:02:57]} 7. Bg2 {[%clk 0:02:57]}  Bd7 {[%clk 0:02:57]} 8. O-O {[%clk 0:02:56]}  Be7 {[%clk 0:02:58]} 9. f4 {[%clk 0:02:48]}  O-O {[%clk 0:02:56]} 10. Kh1 {[%clk 0:02:29]}  a6 {[%clk 0:02:50]} 11. Be3 {[%clk 0:02:22]}  Qc7 {[%clk 0:02:40]} 12. g4 {[%clk 0:02:19]}  Nxd4 {[%clk 0:02:39]} 13. Bxd4 {[%clk 0:02:19]}  e5 {[%clk 0:02:19]} 14. g5 {[%clk 0:02:18]}  exd4 {[%clk 0:02:19]} 15. gxf6 {[%clk 0:02:19]}  Bxf6 {[%clk 0:02:20]} 16. Nd5 {[%clk 0:02:19]}  Qd8 {[%clk 0:02:20]} 17. a4 {[%clk 0:01:25]}  Bc6 {[%clk 0:02:19]} 18. a5 {[%clk 0:01:17]}  Bxd5 {[%clk 0:02:18]} 19. exd5 {[%clk 0:01:17]}  Re8 {[%clk 0:02:19]} 20. Qd3 {[%clk 0:01:16]}  Re3 {[%clk 0:02:18]} 21. Qd2 {[%clk 0:01:15]}  Qe7 {[%clk 0:02:17]} 22. Rae1 {[%clk 0:01:14]}  Re8 {[%clk 0:02:18]} 23. Rxe3 {[%clk 0:01:15]}  dxe3 {[%clk 0:02:19]} 24. Qb4 {[%clk 0:01:12]}  e2 {[%clk 0:02:17]} 25. Re1 {[%clk 0:01:12]}  Bh4 {[%clk 0:02:17]} 26. Bf3 {[%clk 0:01:08]}  Bxe1 {[%clk 0:02:17]} 27. Qxe1 {[%clk 0:01:08]}  Qe3 {[%clk 0:02:17]} 28. Kg2 {[%clk 0:01:09]}  Qxf4 {[%clk 0:02:14]} 29. Bxe2 {[%clk 0:01:10]}  Qe4+ {[%clk 0:02:15]} 30. Kf2 {[%clk 0:01:07]}  Qh4+ {[%clk 0:02:14]} 31. Kf1 {[%clk 0:01:06]}  Qxh2 {[%clk 0:02:12]} 32. Qd2 {[%clk 0:00:58]}  Qh1+ {[%clk 0:02:08]} 33. Kf2 {[%clk 0:00:58]}  Qh4+ {[%clk 0:02:09]} 34. Kf1 {[%clk 0:00:54]}  Re5 {[%clk 0:02:07]} 35. Bf3 {[%clk 0:00:53]}  Rf5 {[%clk 0:02:02]} 36. Qe2 {[%clk 0:00:49]}  Qh3+ {[%clk 0:02:01]} 37. Kf2 {[%clk 0:00:49]}  Qh2+ {[%clk 0:02:01]} 38. Kf1 {[%clk 0:00:47]}  Qh3+ {[%clk 0:01:53]} 39. Kf2 {[%clk 0:00:46]}  g6 {[%clk 0:01:53]} 40. Qe4 {[%clk 0:00:39]}  Re5 {[%clk 0:01:44]} 41. Qf4 {[%clk 0:00:35]}  Qf5 {[%clk 0:01:40]} 42. Qxf5 {[%clk 0:00:34]}  Rxf5 {[%clk 0:01:40]} 43. Kg3 {[%clk 0:00:33]}  Kf8 {[%clk 0:01:40]} 44. c4 {[%clk 0:00:31]}  Re5 {[%clk 0:01:39]} 45. Kf2 {[%clk 0:00:27]}  f5 {[%clk 0:01:39]} 46. b4 {[%clk 0:00:28]}  g5 {[%clk 0:01:39]} 47. c5 {[%clk 0:00:25]}  Ke7 {[%clk 0:01:34]} 48. c6 {[%clk 0:00:21]}  bxc6 {[%clk 0:01:35]} 49. dxc6 {[%clk 0:00:21]}  Rb5 {[%clk 0:01:35]} 50. c7 {[%clk 0:00:13]}  Kd7 {[%clk 0:01:35]} 51. Bc6+ {[%clk 0:00:14]}  Kxc7 {[%clk 0:01:34]} 52. Bxb5 {[%clk 0:00:14]}  axb5 {[%clk 0:01:35]} 0-1


[Site "https://www.chess.com"]

[Event "Titled Tuesday Blitz August 02 Late 2022"]
[White "Espinosa Veloz, Ermes"]
[Black "Zhigalko, Sergei"]
[WhiteFideId "3507424"]
[BlackFideId "13502956"]
[WhiteElo "2333"]
[BlackElo "2662"]
[Result "1-0"]
[Round "09"]
[TimeControl "180+1"]
[Date "2022.08.02"]
[WhiteClock "0:00:14"]
[BlackClock "0:00:03"]

1. d4 {[%clk 0:03:00]}  Nf6 {[%clk 0:02:58]} 2. c4 {[%clk 0:03:00]}  e6 {[%clk 0:02:58]} 3. g3 {[%clk 0:02:59]}  c5 {[%clk 0:02:59]} 4. Nf3 {[%clk 0:02:51]}  cxd4 {[%clk 0:02:58]} 5. Nxd4 {[%clk 0:02:51]}  Qc7 {[%clk 0:02:59]} 6. Qd3 {[%clk 0:02:40]}  d5 {[%clk 0:02:55]} 7. Nb5 {[%clk 0:02:32]}  Qc6 {[%clk 0:02:12]} 8. Bg2 {[%clk 0:01:59]}  a6 {[%clk 0:02:12]} 9. Nd4 {[%clk 0:01:57]}  Qc7 {[%clk 0:01:49]} 10. Nd2 {[%clk 0:01:52]}  e5 {[%clk 0:01:47]} 11. N4b3 {[%clk 0:01:49]}  e4 {[%clk 0:01:31]} 12. Qc3 {[%clk 0:01:44]}  Nc6 {[%clk 0:01:28]} 13. cxd5 {[%clk 0:01:38]}  Nxd5 {[%clk 0:01:26]} 14. Qc4 {[%clk 0:01:38]}  Be6 {[%clk 0:01:08]} 15. Qxe4 {[%clk 0:01:29]}  Be7 {[%clk 0:01:05]} 16. O-O {[%clk 0:01:27]}  O-O {[%clk 0:01:05]} 17. Nf3 {[%clk 0:01:25]}  Ncb4 {[%clk 0:00:49]} 18. Ng5 {[%clk 0:01:14]}  Bxg5 {[%clk 0:00:46]} 19. Bxg5 {[%clk 0:01:15]}  Rfe8 {[%clk 0:00:37]} 20. Qh4 {[%clk 0:01:10]}  h6 {[%clk 0:00:25]} 21. Bd2 {[%clk 0:01:08]}  Nc6 {[%clk 0:00:25]} 22. Nc5 {[%clk 0:01:04]}  Rad8 {[%clk 0:00:19]} 23. Nxe6 {[%clk 0:01:00]}  Rxe6 {[%clk 0:00:20]} 24. e4 {[%clk 0:00:55]}  Nf6 {[%clk 0:00:19]} 25. Bc3 {[%clk 0:00:52]}  Nd4 {[%clk 0:00:18]} 26. Kh1 {[%clk 0:00:43]}  Qc4 {[%clk 0:00:08]} 27. Rad1 {[%clk 0:00:41]}  Nc6 {[%clk 0:00:04]} 28. Rxd8+ {[%clk 0:00:39]}  Nxd8 {[%clk 0:00:05]} 29. e5 {[%clk 0:00:32]}  Qxh4 {[%clk 0:00:06]} 30. gxh4 {[%clk 0:00:33]}  Ng4 {[%clk 0:00:07]} 31. f4 {[%clk 0:00:32]}  Ne3 {[%clk 0:00:06]} 32. Re1 {[%clk 0:00:30]}  Nxg2 {[%clk 0:00:06]} 33. Kxg2 {[%clk 0:00:31]}  Rc6 {[%clk 0:00:04]} 34. f5 {[%clk 0:00:30]}  Rc4 {[%clk 0:00:04]} 35. Kg3 {[%clk 0:00:29]}  Nc6 {[%clk 0:00:03]} 36. Rd1 {[%clk 0:00:25]}  Ne7 {[%clk 0:00:03]} 37. f6 {[%clk 0:00:23]}  Nf5+ {[%clk 0:00:03]} 38. Kf2 {[%clk 0:00:22]}  Rxh4 {[%clk 0:00:03]} 39. Rd8+ {[%clk 0:00:21]}  Kh7 {[%clk 0:00:03]} 40. e6 {[%clk 0:00:21]}  fxe6 {[%clk 0:00:02]} 41. f7 {[%clk 0:00:19]}  Rf4+ {[%clk 0:00:03]} 42. Ke1 {[%clk 0:00:18]}  Ne3 {[%clk 0:00:01]} 43. f8=Q {[%clk 0:00:16]}  Rxf8 {[%clk 0:00:02]} 44. Rxf8 {[%clk 0:00:15]}  Nd5 {[%clk 0:00:03]} 45. Rf7 {[%clk 0:00:14]} 1-0


[Site "https://www.chess.com"]

[Event "Titled Tuesday Blitz August 02 Late 2022"]
[White "Fedoseev, Vladimir"]
[Black "Nakamura, Hikaru"]
[WhiteFideId "24130737"]
[BlackFideId "2016192"]
[WhiteElo "2726"]
[BlackElo "2850"]
[Result "1-0"]
[Round "09"]
[TimeControl "180+1"]
[Date "2022.08.02"]
[WhiteClock "0:00:13"]
[BlackClock "0:00:09"]

1. e4 {[%clk 0:02:57]}  e5 {[%clk 0:03:00]} 2. Nf3 {[%clk 0:02:58]}  Nc6 {[%clk 0:03:00]} 3. Bb5 {[%clk 0:02:58]}  Nf6 {[%clk 0:03:00]} 4. d3 {[%clk 0:02:58]}  Bc5 {[%clk 0:03:00]} 5. Bxc6 {[%clk 0:02:58]}  dxc6 {[%clk 0:03:00]} 6. Nbd2 {[%clk 0:02:57]}  Be6 {[%clk 0:03:00]} 7. O-O {[%clk 0:02:55]}  Bd6 {[%clk 0:03:00]} 8. Nb3 {[%clk 0:02:48]}  a5 {[%clk 0:03:00]} 9. Qe1 {[%clk 0:02:48]}  a4 {[%clk 0:02:57]} 10. Na5 {[%clk 0:02:47]}  Qc8 {[%clk 0:02:58]} 11. Ng5 {[%clk 0:02:36]}  Bg4 {[%clk 0:02:28]} 12. h3 {[%clk 0:02:25]}  Bd7 {[%clk 0:02:20]} 13. f4 {[%clk 0:02:24]}  exf4 {[%clk 0:02:09]} 14. Bxf4 {[%clk 0:02:14]}  O-O {[%clk 0:01:56]} 15. Bxd6 {[%clk 0:01:45]}  cxd6 {[%clk 0:01:56]} 16. Nc4 {[%clk 0:01:45]}  Qc7 {[%clk 0:01:49]} 17. Qh4 {[%clk 0:01:15]}  h6 {[%clk 0:01:43]} 18. Rxf6 {[%clk 0:01:09]}  gxf6 {[%clk 0:01:36]} 19. Qxh6 {[%clk 0:00:59]}  fxg5 {[%clk 0:01:35]} 20. Qxg5+ {[%clk 0:00:59]}  Kh8 {[%clk 0:00:46]} 21. Rf1 {[%clk 0:00:55]}  f5 {[%clk 0:00:37]} 22. Qh6+ {[%clk 0:00:47]}  Kg8 {[%clk 0:00:38]} 23. Qg6+ {[%clk 0:00:44]}  Kh8 {[%clk 0:00:38]} 24. Rf4 {[%clk 0:00:38]}  Qd8 {[%clk 0:00:38]} 25. Qh6+ {[%clk 0:00:34]}  Kg8 {[%clk 0:00:38]} 26. Rh4 {[%clk 0:00:35]}  Qe7 {[%clk 0:00:32]} 27. Rh5 {[%clk 0:00:21]}  Rf6 {[%clk 0:00:23]} 28. Qh8+ {[%clk 0:00:19]}  Kf7 {[%clk 0:00:23]} 29. Qxa8 {[%clk 0:00:18]}  Rg6 {[%clk 0:00:20]} 30. Qh8 {[%clk 0:00:14]}  Qf8 {[%clk 0:00:11]} 31. Rh7+ {[%clk 0:00:13]}  Rg7 {[%clk 0:00:09]} 32. Qxf8+ {[%clk 0:00:13]} 1-0


[Site "https://www.chess.com"]

[Event "Titled Tuesday Blitz August 02 Late 2022"]
[White "Harshavardhan G B"]
[Black "Leve, Nitai"]
[WhiteFideId "25059009"]
[BlackFideId "2006898"]
[WhiteElo "1831"]
[BlackElo "2144"]
[Result "1-0"]
[Round "09"]
[TimeControl "180+1"]
[Date "2022.08.02"]
[WhiteClock "0:01:15"]
[BlackClock "0:00:28"]

1. d4 {[%clk 0:03:00]}  d5 {[%clk 0:02:56]} 2. c4 {[%clk 0:03:00]}  c6 {[%clk 0:02:56]} 3. Nf3 {[%clk 0:02:59]}  Nf6 {[%clk 0:02:52]} 4. Nc3 {[%clk 0:02:59]}  dxc4 {[%clk 0:02:49]} 5. a4 {[%clk 0:02:58]}  Bf5 {[%clk 0:02:44]} 6. Ne5 {[%clk 0:02:57]}  Nbd7 {[%clk 0:02:39]} 7. Nxc4 {[%clk 0:02:57]}  Qc7 {[%clk 0:02:33]} 8. g3 {[%clk 0:02:56]}  e5 {[%clk 0:02:29]} 9. dxe5 {[%clk 0:02:56]}  Nxe5 {[%clk 0:02:30]} 10. Bf4 {[%clk 0:02:55]}  Nfd7 {[%clk 0:02:29]} 11. Bg2 {[%clk 0:02:50]}  f6 {[%clk 0:02:23]} 12. Ne3 {[%clk 0:02:46]}  Be6 {[%clk 0:02:20]} 13. h4 {[%clk 0:02:42]}  O-O-O {[%clk 0:02:19]} 14. Qc2 {[%clk 0:02:37]}  Be7 {[%clk 0:01:57]} 15. a5 {[%clk 0:02:28]}  a6 {[%clk 0:01:48]} 16. O-O {[%clk 0:02:09]}  g5 {[%clk 0:01:45]} 17. Bxe5 {[%clk 0:02:08]}  Qxe5 {[%clk 0:01:35]} 18. h5 {[%clk 0:02:06]}  f5 {[%clk 0:01:32]} 19. Na4 {[%clk 0:02:00]}  f4 {[%clk 0:01:29]} 20. Nc4 {[%clk 0:01:55]}  Qf6 {[%clk 0:01:12]} 21. Rad1 {[%clk 0:01:36]}  Ne5 {[%clk 0:00:54]} 22. Nxe5 {[%clk 0:01:29]}  Qxe5 {[%clk 0:00:55]} 23. Bxc6 {[%clk 0:01:27]}  Kb8 {[%clk 0:00:45]} 24. Qe4 {[%clk 0:01:17]}  bxc6 {[%clk 0:00:28]} 25. Qxe5+ {[%clk 0:01:15]} 1-0


[Site "https://www.chess.com"]

[Event "Titled Tuesday Blitz August 02 Late 2022"]
[White "Harvey, Marcus R"]
[Black "Riehle, Marco"]
[WhiteFideId "400092"]
[BlackFideId "12904392"]
[WhiteElo "2485"]
[BlackElo "2462"]
[Result "1-0"]
[Round "09"]
[TimeControl "180+1"]
[Date "2022.08.02"]
[WhiteClock "0:00:20"]
[BlackClock "0:00:43"]

1. c4 {[%clk 0:03:00]}  e6 {[%clk 0:02:59]} 2. Nf3 {[%clk 0:02:59]}  d5 {[%clk 0:02:59]} 3. e3 {[%clk 0:03:00]}  Nf6 {[%clk 0:02:59]} 4. b3 {[%clk 0:03:00]}  c5 {[%clk 0:02:57]} 5. Bb2 {[%clk 0:03:00]}  Nc6 {[%clk 0:02:58]} 6. cxd5 {[%clk 0:03:01]}  Nxd5 {[%clk 0:02:57]} 7. Be2 {[%clk 0:03:00]}  Be7 {[%clk 0:02:52]} 8. Bxg7 {[%clk 0:02:50]}  Rg8 {[%clk 0:02:41]} 9. Bb2 {[%clk 0:02:50]}  Rxg2 {[%clk 0:02:41]} 10. Nc3 {[%clk 0:02:50]}  Bd7 {[%clk 0:02:37]} 11. Ne4 {[%clk 0:02:46]}  Rg8 {[%clk 0:02:35]} 12. a3 {[%clk 0:02:35]}  Qb6 {[%clk 0:02:32]} 13. Qc2 {[%clk 0:02:34]}  f5 {[%clk 0:02:28]} 14. Nc3 {[%clk 0:02:30]}  O-O-O {[%clk 0:02:27]} 15. Na4 {[%clk 0:02:24]}  Qa5 {[%clk 0:02:24]} 16. Rc1 {[%clk 0:02:23]}  b6 {[%clk 0:02:09]} 17. Kf1 {[%clk 0:01:59]}  Bd6 {[%clk 0:02:00]} 18. d4 {[%clk 0:01:55]}  Kb8 {[%clk 0:01:43]} 19. dxc5 {[%clk 0:01:51]}  bxc5 {[%clk 0:01:44]} 20. Nxc5 {[%clk 0:01:52]}  Bxc5 {[%clk 0:01:43]} 21. Qxc5 {[%clk 0:01:53]}  Qxc5 {[%clk 0:01:39]} 22. Rxc5 {[%clk 0:01:54]}  Rc8 {[%clk 0:01:39]} 23. b4 {[%clk 0:01:52]}  Kb7 {[%clk 0:01:34]} 24. Rg1 {[%clk 0:01:47]}  Rxg1+ {[%clk 0:01:33]} 25. Kxg1 {[%clk 0:01:47]}  a5 {[%clk 0:01:32]} 26. b5 {[%clk 0:01:45]}  Nce7 {[%clk 0:01:29]} 27. Rxc8 {[%clk 0:01:45]}  Nxc8 {[%clk 0:01:30]} 28. a4 {[%clk 0:01:32]}  Ncb6 {[%clk 0:01:26]} 29. Bd1 {[%clk 0:01:30]}  Nc4 {[%clk 0:01:24]} 30. Bd4 {[%clk 0:01:28]}  Be8 {[%clk 0:01:23]} 31. Ne5 {[%clk 0:01:24]}  Nxe5 {[%clk 0:01:23]} 32. Bxe5 {[%clk 0:01:25]}  Kb6 {[%clk 0:01:24]} 33. Bd4+ {[%clk 0:01:25]}  Kb7 {[%clk 0:01:24]} 34. Kf1 {[%clk 0:01:19]}  f4 {[%clk 0:01:21]} 35. e4 {[%clk 0:01:17]}  Nb6 {[%clk 0:01:21]} 36. Bxb6 {[%clk 0:01:07]}  Kxb6 {[%clk 0:01:21]} 37. e5 {[%clk 0:01:07]}  Kc5 {[%clk 0:01:18]} 38. Bf3 {[%clk 0:01:07]}  Bg6 {[%clk 0:01:13]} 39. Bg4 {[%clk 0:00:57]}  Bc2 {[%clk 0:01:09]} 40. Bxe6 {[%clk 0:00:54]}  Bxa4 {[%clk 0:01:09]} 41. Ke2 {[%clk 0:00:48]}  Bxb5+ {[%clk 0:01:09]} 42. Kf3 {[%clk 0:00:48]}  a4 {[%clk 0:01:08]} 43. Kxf4 {[%clk 0:00:46]}  a3 {[%clk 0:01:04]} 44. h4 {[%clk 0:00:26]}  h6 {[%clk 0:00:52]} 45. Ba2 {[%clk 0:00:25]}  Bd7 {[%clk 0:00:45]} 46. e6 {[%clk 0:00:21]}  Be8 {[%clk 0:00:45]} 47. Ke5 {[%clk 0:00:21]}  Kc6 {[%clk 0:00:46]} 48. f4 {[%clk 0:00:21]}  Kc5 {[%clk 0:00:45]} 49. f5 {[%clk 0:00:21]}  Bb5 {[%clk 0:00:44]} 50. e7 {[%clk 0:00:20]}  h5 {[%clk 0:00:42]} 51. f6 {[%clk 0:00:20]}  Bc4 {[%clk 0:00:42]} 52. Bxc4 {[%clk 0:00:19]}  Kxc4 {[%clk 0:00:43]} 53. e8=Q {[%clk 0:00:19]}  a2 {[%clk 0:00:43]} 54. Qe6+ {[%clk 0:00:20]} 1-0


[Site "https://www.chess.com"]

[Event "Titled Tuesday Blitz August 02 Late 2022"]
[White "Holt, Conrad"]
[Black "Grischuk, Alexander"]
[WhiteFideId "2034387"]
[BlackFideId "4126025"]
[WhiteElo "2586"]
[BlackElo "2762"]
[Result "0-1"]
[Round "09"]
[TimeControl "180+1"]
[Date "2022.08.02"]
[WhiteClock "0:01:10"]
[BlackClock "0:00:22"]

1. d4 {[%clk 0:03:00]}  Nf6 {[%clk 0:03:00]} 2. c4 {[%clk 0:03:00]}  e6 {[%clk 0:03:00]} 3. Nc3 {[%clk 0:03:01]}  Bb4 {[%clk 0:03:00]} 4. Qc2 {[%clk 0:03:01]}  d6 {[%clk 0:02:58]} 5. e3 {[%clk 0:02:55]}  O-O {[%clk 0:02:52]} 6. Bd3 {[%clk 0:02:54]}  c5 {[%clk 0:02:49]} 7. dxc5 {[%clk 0:02:53]}  dxc5 {[%clk 0:02:44]} 8. Nf3 {[%clk 0:02:51]}  Nc6 {[%clk 0:02:41]} 9. O-O {[%clk 0:02:51]}  Bxc3 {[%clk 0:02:35]} 10. Qxc3 {[%clk 0:02:50]}  e5 {[%clk 0:02:31]} 11. Rd1 {[%clk 0:02:39]}  Qe7 {[%clk 0:02:23]} 12. Nd2 {[%clk 0:02:24]}  e4 {[%clk 0:01:30]} 13. Be2 {[%clk 0:02:23]}  Bg4 {[%clk 0:01:29]} 14. Bxg4 {[%clk 0:02:22]}  Nxg4 {[%clk 0:01:30]} 15. h3 {[%clk 0:02:23]}  Nf6 {[%clk 0:01:28]} 16. b3 {[%clk 0:02:21]}  Rad8 {[%clk 0:01:28]} 17. Bb2 {[%clk 0:02:19]}  Rd3 {[%clk 0:01:28]} 18. Qc2 {[%clk 0:02:16]}  Nb4 {[%clk 0:01:16]} 19. Qb1 {[%clk 0:02:01]}  Rfd8 {[%clk 0:01:14]} 20. a3 {[%clk 0:01:56]}  Nc6 {[%clk 0:01:10]} 21. Bc1 {[%clk 0:01:56]}  Nh5 {[%clk 0:00:59]} 22. Ra2 {[%clk 0:01:53]}  f5 {[%clk 0:00:58]} 23. Re1 {[%clk 0:01:52]}  Ne5 {[%clk 0:00:52]} 24. Nf1 {[%clk 0:01:52]}  R3d7 {[%clk 0:00:52]} 25. Rd2 {[%clk 0:01:45]}  Nd3 {[%clk 0:00:40]} 26. Red1 {[%clk 0:01:44]}  h6 {[%clk 0:00:39]} 27. Bb2 {[%clk 0:01:43]}  Qg5 {[%clk 0:00:36]} 28. Bc3 {[%clk 0:01:39]}  f4 {[%clk 0:00:36]} 29. exf4 {[%clk 0:01:30]}  Nhxf4 {[%clk 0:00:29]} 30. Ng3 {[%clk 0:01:30]}  e3 {[%clk 0:00:29]} 31. fxe3 {[%clk 0:01:27]}  Qxg3 {[%clk 0:00:29]} 32. exf4 {[%clk 0:01:26]}  Nxf4 {[%clk 0:00:30]} 33. Qe4 {[%clk 0:01:12]}  Nxh3+ {[%clk 0:00:29]} 34. Kf1 {[%clk 0:01:11]}  Rf8+ {[%clk 0:00:23]} 35. Ke2 {[%clk 0:01:10]}  Qf2# {[%clk 0:00:22]} 0-1


[Site "https://www.chess.com"]

[Event "Titled Tuesday Blitz August 02 Late 2022"]
[White "Izoria, Zviad"]
[Black "Yoo, Christopher Woojin"]
[WhiteFideId "13601733"]
[BlackFideId "30909694"]
[WhiteElo "2626"]
[BlackElo "2105"]
[Result "0-1"]
[Round "09"]
[TimeControl "180+1"]
[Date "2022.08.02"]
[WhiteClock "0:00:02"]
[BlackClock "0:00:05"]

1. Nf3 {[%clk 0:03:00]}  d5 {[%clk 0:02:57]} 2. e3 {[%clk 0:02:55]}  Nf6 {[%clk 0:02:57]} 3. c4 {[%clk 0:02:50]}  c6 {[%clk 0:02:54]} 4. Nc3 {[%clk 0:02:46]}  Nbd7 {[%clk 0:02:54]} 5. Qc2 {[%clk 0:02:37]}  e6 {[%clk 0:02:46]} 6. b3 {[%clk 0:02:36]}  Bd6 {[%clk 0:02:46]} 7. Bb2 {[%clk 0:02:36]}  O-O {[%clk 0:02:46]} 8. Be2 {[%clk 0:02:35]}  b6 {[%clk 0:02:39]} 9. cxd5 {[%clk 0:02:08]}  exd5 {[%clk 0:02:37]} 10. O-O {[%clk 0:02:07]}  Bb7 {[%clk 0:02:37]} 11. Rac1 {[%clk 0:02:05]}  Qe7 {[%clk 0:02:36]} 12. Rfd1 {[%clk 0:02:05]}  Rfe8 {[%clk 0:02:33]} 13. Bf1 {[%clk 0:02:02]}  Ne5 {[%clk 0:02:09]} 14. Nd4 {[%clk 0:01:52]}  g6 {[%clk 0:02:05]} 15. h3 {[%clk 0:01:32]}  a6 {[%clk 0:01:58]} 16. Nde2 {[%clk 0:01:27]}  Ned7 {[%clk 0:01:49]} 17. g3 {[%clk 0:01:12]}  c5 {[%clk 0:01:41]} 18. Bg2 {[%clk 0:01:11]}  Rac8 {[%clk 0:01:33]} 19. d4 {[%clk 0:01:05]}  c4 {[%clk 0:01:33]} 20. bxc4 {[%clk 0:01:04]}  Rxc4 {[%clk 0:01:34]} 21. a4 {[%clk 0:00:53]}  Rec8 {[%clk 0:01:33]} 22. Qb3 {[%clk 0:00:54]}  Qe6 {[%clk 0:01:30]} 23. Ba3 {[%clk 0:00:50]}  Bxa3 {[%clk 0:01:17]} 24. Qxa3 {[%clk 0:00:51]}  Qc6 {[%clk 0:01:17]} 25. Bf1 {[%clk 0:00:42]}  Qc7 {[%clk 0:01:06]} 26. Qb3 {[%clk 0:00:41]}  Nf8 {[%clk 0:00:57]} 27. Rb1 {[%clk 0:00:38]}  N6d7 {[%clk 0:00:51]} 28. Na2 {[%clk 0:00:29]}  Ne6 {[%clk 0:00:34]} 29. Nb4 {[%clk 0:00:29]}  a5 {[%clk 0:00:31]} 30. Nd3 {[%clk 0:00:24]}  Ng5 {[%clk 0:00:30]} 31. Bg2 {[%clk 0:00:23]}  Ne4 {[%clk 0:00:28]} 32. Nef4 {[%clk 0:00:18]}  Nc3 {[%clk 0:00:26]} 33. Kh2 {[%clk 0:00:16]}  Nxd1 {[%clk 0:00:24]} 34. Qxd1 {[%clk 0:00:17]}  Qd6 {[%clk 0:00:22]} 35. h4 {[%clk 0:00:15]}  Bc6 {[%clk 0:00:20]} 36. Ra1 {[%clk 0:00:14]}  h5 {[%clk 0:00:13]} 37. Nb2 {[%clk 0:00:13]}  Rb4 {[%clk 0:00:13]} 38. Nbd3 {[%clk 0:00:13]}  Rc4 {[%clk 0:00:13]} 39. Nb2 {[%clk 0:00:13]}  Nf6 {[%clk 0:00:06]} 40. Nxc4 {[%clk 0:00:13]}  dxc4 {[%clk 0:00:07]} 41. d5 {[%clk 0:00:14]}  Bd7 {[%clk 0:00:06]} 42. Qd4 {[%clk 0:00:13]}  c3 {[%clk 0:00:07]} 43. Bf3 {[%clk 0:00:08]}  c2 {[%clk 0:00:06]} 44. Ne2 {[%clk 0:00:07]}  Ng4+ {[%clk 0:00:06]} 45. Bxg4 {[%clk 0:00:05]}  Bxg4 {[%clk 0:00:06]} 46. Nc1 {[%clk 0:00:04]}  Qb4 {[%clk 0:00:04]} 47. Qxb4 {[%clk 0:00:01]}  axb4 {[%clk 0:00:05]} 48. Ra2 {[%clk 0:00:02]}  Rc3 {[%clk 0:00:05]} 49. Rb2 {[%clk 0:00:02]}  Rc4 {[%clk 0:00:05]} 0-1


[Site "https://www.chess.com"]

[Event "Titled Tuesday Blitz August 02 Late 2022"]
[White "Johnson, Donald"]
[Black "Guz, Ari"]
[WhiteFideId "30949122"]
[BlackFideId "2825759"]
[WhiteElo "1724"]
[BlackElo "1913"]
[Result "0-1"]
[Round "09"]
[TimeControl "180+1"]
[Date "2022.08.02"]
[WhiteClock "0:00:01"]
[BlackClock "0:00:18"]

1. e4 {[%clk 0:03:00]}  e6 {[%clk 0:02:58]} 2. d4 {[%clk 0:03:00]}  d5 {[%clk 0:02:59]} 3. Nd2 {[%clk 0:03:00]}  dxe4 {[%clk 0:02:59]} 4. Nxe4 {[%clk 0:03:01]}  Nd7 {[%clk 0:02:59]} 5. Bd3 {[%clk 0:02:57]}  Ngf6 {[%clk 0:02:59]} 6. Nf3 {[%clk 0:02:57]}  Nxe4 {[%clk 0:02:58]} 7. Bxe4 {[%clk 0:02:58]}  Nf6 {[%clk 0:02:59]} 8. Bg5 {[%clk 0:02:57]}  Be7 {[%clk 0:02:58]} 9. Bxf6 {[%clk 0:02:56]}  Bxf6 {[%clk 0:02:59]} 10. Qd3 {[%clk 0:02:57]}  c5 {[%clk 0:02:40]} 11. dxc5 {[%clk 0:02:10]}  Qa5+ {[%clk 0:02:38]} 12. c3 {[%clk 0:02:08]}  Qxc5 {[%clk 0:02:33]} 13. O-O {[%clk 0:02:08]}  h6 {[%clk 0:02:28]} 14. Nd2 {[%clk 0:01:59]}  O-O {[%clk 0:02:27]} 15. Bh7+ {[%clk 0:01:57]}  Kh8 {[%clk 0:02:27]} 16. Ne4 {[%clk 0:01:58]}  Qe7 {[%clk 0:02:26]} 17. Nxf6 {[%clk 0:01:57]}  Qxf6 {[%clk 0:02:27]} 18. Be4 {[%clk 0:01:57]}  Rd8 {[%clk 0:02:23]} 19. Qf3 {[%clk 0:01:55]}  Qxf3 {[%clk 0:02:19]} 20. Bxf3 {[%clk 0:01:56]}  Bd7 {[%clk 0:02:19]} 21. Rfd1 {[%clk 0:01:51]}  Bc6 {[%clk 0:02:19]} 22. Bxc6 {[%clk 0:01:50]}  bxc6 {[%clk 0:02:20]} 23. Kf1 {[%clk 0:01:48]}  Rd5 {[%clk 0:02:14]} 24. c4 {[%clk 0:01:45]}  Rf5 {[%clk 0:02:07]} 25. Rd7 {[%clk 0:01:41]}  a5 {[%clk 0:02:06]} 26. Rc7 {[%clk 0:01:36]}  Rb8 {[%clk 0:02:00]} 27. b3 {[%clk 0:01:34]}  a4 {[%clk 0:01:52]} 28. Rb1 {[%clk 0:01:27]}  c5 {[%clk 0:01:17]} 29. f3 {[%clk 0:00:54]}  Rd8 {[%clk 0:01:05]} 30. bxa4 {[%clk 0:00:49]}  Rd2 {[%clk 0:01:01]} 31. a5 {[%clk 0:00:18]}  Rxa2 {[%clk 0:00:56]} 32. Ra7 {[%clk 0:00:16]}  Kh7 {[%clk 0:00:43]} 33. a6 {[%clk 0:00:15]}  Kg6 {[%clk 0:00:41]} 34. Re1 {[%clk 0:00:11]}  Rf4 {[%clk 0:00:35]} 35. Rc1 {[%clk 0:00:11]}  Rd4 {[%clk 0:00:34]} 36. Ra8 {[%clk 0:00:07]}  Rdd2 {[%clk 0:00:33]} 37. a7 {[%clk 0:00:07]}  Rf2+ {[%clk 0:00:34]} 38. Kg1 {[%clk 0:00:04]}  Rxg2+ {[%clk 0:00:34]} 39. Kf1 {[%clk 0:00:05]}  Rxh2 {[%clk 0:00:35]} 40. Kg1 {[%clk 0:00:05]}  Rh3 {[%clk 0:00:26]} 41. Rb1 {[%clk 0:00:03]}  Rxf3 {[%clk 0:00:24]} 42. Rb7 {[%clk 0:00:02]}  Rc3 {[%clk 0:00:23]} 43. Rb1 {[%clk 0:00:01]}  Rxc4 {[%clk 0:00:22]} 44. Rf1 {[%clk 0:00:01]}  Rca4 {[%clk 0:00:20]} 45. Rf2 {[%clk 0:00:01]}  Ra1+ {[%clk 0:00:18]} 46. Kg2 {[%clk 0:00:01]}  Rxa7 {[%clk 0:00:19]} 47. Rxa7 {[%clk 0:00:01]}  Rxa7 {[%clk 0:00:20]} 48. Kh2 {[%clk 0:00:02]}  Rc7 {[%clk 0:00:20]} 49. Kg2 {[%clk 0:00:02]}  c4 {[%clk 0:00:20]} 50. Kh2 {[%clk 0:00:03]}  f5 {[%clk 0:00:21]} 51. Kg1 {[%clk 0:00:03]}  Kf6 {[%clk 0:00:21]} 52. Kg2 {[%clk 0:00:04]}  g5 {[%clk 0:00:22]} 53. Kg1 {[%clk 0:00:05]}  e5 {[%clk 0:00:22]} 54. Kg2 {[%clk 0:00:06]}  e4 {[%clk 0:00:23]} 55. Kg1 {[%clk 0:00:06]}  c3 {[%clk 0:00:23]} 56. Kg2 {[%clk 0:00:07]}  c2 {[%clk 0:00:23]} 57. Kh2 {[%clk 0:00:07]}  c1=Q {[%clk 0:00:23]} 58. Kg2 {[%clk 0:00:07]}  Qf4 {[%clk 0:00:23]} 59. Kg1 {[%clk 0:00:06]}  Qg4+ {[%clk 0:00:20]} 60. Kh2 {[%clk 0:00:06]}  Rc3 {[%clk 0:00:20]} 61. Rxf5+ {[%clk 0:00:02]}  Kxf5 {[%clk 0:00:18]} 62. Kh1 {[%clk 0:00:01]}  Rh3# {[%clk 0:00:18]} 0-1


[Site "https://www.chess.com"]